bitfinex/quotes_SOLUSD_20241110
["timestamp","ask_amount","ask_price","bid_price","bid_amount"]
[1731251801887,15.46873946,208.46,208.43,11.9939]
[1731251802099,15.46873946,208.44,208.4,6.2459]
[1731251802292,15.46873946,208.42,208.37,16.7964]
[1731251802500,15.46873946,208.38,208.35,21.2836]
[1731251802706,15.46873946,208.41,208.35,21.2836]
[1731251802993,15.46873946,208.43,208.36,15.46873946]
[1731251803294,15.46873946,208.42,208.35,53.55083946]
[1731251803519,15.46873946,208.42,208.35,38.0821]
[1731251803810,15.46873946,208.42,208.35,53.55083946]
[1731251805217,15.46873946,208.44,208.37,15.46873946]
[1731251806091,15.46873946,208.44,208.35,38.0821]
[1731251806092,15.46873946,208.45,208.38,15.46873946]
[1731251806487,15.46873946,208.46,208.39,15.46873946]
[1731251806722,15.46873946,208.46,208.4,16.7945]
[1731251807012,15.3084,208.53,208.4,16.7945]
[1731251807013,15.46873946,208.48,208.41,15.46873946]
[1731251807213,15.46873946,208.47,208.4,32.26323946]
[1731251807403,15.46873946,208.46,208.4,16.7945]
[1731251807801,15.46873946,208.45,208.4,16.7945]
[1731251808203,15.46873946,208.47,208.4,32.26323946]
[1731251808720,15.46873946,208.51,208.45,16.7905]
[1731251808921,31.53093946,208.6,208.45,16.7905]
[1731251808922,15.46873946,208.5,208.45,16.7905]
[1731251809216,15.46873946,208.49,208.45,16.7905]
[1731251809731,15.46873946,208.48,208.45,16.7905]
[1731251810403,15.46873946,208.48,208.45,11.9932]
[1731251811009,15.46873946,208.46,208.42,4.798]
[1731251811211,15.46873946,208.45,208.42,4.798]
[1731251811607,15.46873946,208.5,208.42,4.798]
[1731251811608,15.46873946,208.44,208.42,4.798]
[1731251812118,15.46873946,208.45,208.4,23.9923]
[1731251813017,0.1,208.58,208.4,23.9923]
[1731251813201,15.46873946,208.47,208.41,15.46873946]
[1731251813918,15.46873946,208.48,208.4,23.9923]
[1731251814100,15.46873946,208.49,208.43,15.46873946]
[1731251814502,15.46873946,208.48,208.41,15.46873946]
[1731251814898,31.53093946,208.6,208.4,23.9923]
[1731251814899,15.46873946,208.46,208.4,23.9923]
[1731251816435,15.46873946,208.44,208.4,40.7868]
[1731251816604,15.46873946,208.45,208.4,40.7868]
[1731251816808,0.1,208.58,208.4,40.7868]
[1731251816809,15.46873946,208.46,208.4,40.7868]
[1731251817723,15.46873946,208.42,208.38,4.7988]
[1731251817914,15.46873946,208.44,208.38,16.7961]
[1731251818114,0.1,208.54,208.38,16.7961]
[1731251818316,20.0,208.54,208.38,16.7961]
[1731251818823,15.46873946,208.45,208.38,32.26483946]
[1731251819019,15.46873946,208.46,208.38,32.26483946]
[1731251819217,20.0,208.59,208.42,15.46873946]
[1731251819423,20.0,208.59,208.38,40.7907]
[1731251819424,15.46873946,208.46,208.38,56.25943946]
[1731251819606,15.46873946,208.46,208.38,40.7907]
[1731251820304,15.46873946,208.48,208.4,15.46873946]
[1731251820501,15.46873946,208.47,208.4,15.46873946]
[1731251820719,15.46873946,208.48,208.41,15.46873946]
[1731251820939,15.46873946,208.47,208.4,15.46873946]
[1731251821517,15.46873946,208.47,208.41,16.7937]
[1731251821723,15.46873946,208.46,208.41,16.7937]
[1731251822032,41.54992818,208.6,208.41,16.7937]
[1731251822033,15.46873946,208.47,208.41,16.7937]
[1731251822539,15.46873946,208.46,208.41,16.7937]
[1731251823028,15.46873946,208.44,208.41,16.7937]
[1731251824007,15.46873946,208.47,208.39,15.46873946]
[1731251825322,15.46873946,208.47,208.38,23.9946]
[1731251825323,15.46873946,208.5,208.43,15.46873946]
[1731251825610,15.46873946,208.5,208.42,15.46873946]
[1731251825805,41.34992818,208.6,208.4,40.7868]
[1731251825806,15.46873946,208.49,208.41,15.46873946]
[1731251826426,15.46873946,208.49,208.42,16.793]
[1731251826636,15.46873946,208.52,208.44,15.46873946]
[1731251826935,15.46873946,208.51,208.45,6.4518]
[1731251827113,15.46873946,208.5,208.45,6.4518]
[1731251827313,15.46873946,208.49,208.45,6.4518]
[1731251828413,15.46873946,208.46,208.42,40.783]
[1731251828720,15.46873946,208.49,208.42,56.25173946]
[1731251829029,15.46873946,208.49,208.42,40.783]
[1731251829407,15.46873946,208.47,208.42,16.793]
[1731251829630,15.46873946,208.46,208.42,16.793]
[1731251830222,15.46873946,208.51,208.43,15.46873946]
[1731251830630,15.46873946,208.49,208.44,16.7913]
[1731251830820,9.65570309,208.49,208.44,16.7913]
[1731251831622,9.65570309,208.47,208.44,16.7913]
[1731251832638,9.65570309,208.47,208.44,11.9938]
[1731251833132,9.65570309,208.49,208.44,11.9938]
[1731251833336,4.794,208.59,208.46,9.65570309]
[1731251833542,9.65570309,208.5,208.44,11.9938]
[1731251834535,9.65570309,208.5,208.44,16.7913]
[1731251835034,9.65570309,208.47,208.44,11.9938]
[1731251835228,9.65570309,208.45,208.35,45.4875]
[1731251835411,9.65570309,208.42,208.37,4.799]
[1731251835615,9.65570309,208.4,208.36,11.9984]
[1731251835834,15.6476,208.49,208.36,11.9984]
[1731251835835,9.65570309,208.39,208.36,11.9984]
[1731251836143,9.65570309,208.44,208.37,9.65570309]
[1731251836314,9.65570309,208.45,208.38,9.65570309]
[1731251836517,9.65570309,208.45,208.36,16.7977]
[1731251836518,9.65570309,208.44,208.37,9.65570309]
[1731251836721,9.65570309,208.41,208.35,31.14520309]
[1731251836915,20.0,208.48,208.34,4.7998]
[1731251837134,9.65570309,208.37,208.32,16.8005]
[1731251837837,9.65570309,208.33,208.3,22.7805]
[1731251838040,9.65570309,208.31,208.27,16.8048]
[1731251838336,9.65570309,208.3,208.27,12.0034]
[1731251838539,15.6476,208.39,208.23,4.8023]
[1731251838540,9.65570309,208.29,208.23,4.8023]
[1731251838741,9.65570309,208.26,208.21,16.8096]
[1731251839119,9.65570309,208.26,208.2,22.7805]
[1731251839120,9.65570309,208.22,208.2,6.4518]
[1731251839326,9.65570309,208.3,208.16,16.8138]
[1731251839534,0.2,208.37,208.16,16.8138]
[1731251839535,20.0,208.36,208.16,16.8138]
[1731251840043,4.7989,208.38,208.18,0.1]
[1731251840246,4.7989,208.38,208.19,6.4518]
[1731251840439,9.65570309,208.26,208.19,6.4518]
[1731251840619,9.65570309,208.24,208.19,6.4518]
[1731251840816,15.48760298,208.23,208.19,6.4518]
[1731251841038,15.48760298,208.2,208.16,12.0099]
[1731251841242,15.48760298,208.18,208.16,12.0099]
[1731251841622,15.48760298,208.18,208.13,11.2563]
[1731251841819,15.48760298,208.15,208.11,12.0127]
[1731251842129,15.48760298,208.17,208.11,12.0127]
[1731251842443,15.48760298,208.16,208.11,12.0127]
[1731251842823,4.8019,208.25,208.09,4.8056]
[1731251843123,15.48760298,208.16,208.09,32.30720298]
[1731251843525,15.48760298,208.17,208.09,32.30720298]
[1731251843722,4.8019,208.25,208.09,16.8196]
[1731251843723,15.48760298,208.16,208.09,16.8196]
[1731251843933,15.48760298,208.18,208.1,15.48760298]
[1731251844137,15.48760298,208.16,208.09,32.30720298]
[1731251844446,15.48760298,208.14,208.09,16.8196]
[1731251845139,15.48760298,208.15,208.09,16.8196]
[1731251845358,15.48760298,208.17,208.09,32.30720298]
[1731251845524,15.48760298,208.17,208.1,15.48760298]
[1731251846027,15.48760298,208.19,208.11,15.48760298]
[1731251846852,15.48760298,208.18,208.12,16.8172]
[1731251847029,15.48760298,208.17,208.12,16.8172]
[1731251847353,15.48760298,208.21,208.13,15.48760298]
[1731251847647,6.5236,208.28,208.12,16.8172]
[1731251847648,15.48760298,208.24,208.12,16.8172]
[1731251847949,15.48760298,208.24,208.17,15.48760298]
[1731251848121,15.48760298,208.25,208.18,15.48760298]
[1731251848323,15.48760298,208.25,208.17,15.48760298]
[1731251849225,15.48760298,208.25,208.18,32.29990298]
[1731251849646,15.48760298,208.25,208.18,16.8123]
[1731251849943,15.48760298,208.25,208.18,32.29990298]
[1731251850625,15.48760298,208.25,208.18,16.8123]
[1731251850922,15.48760298,208.3,208.18,12.0088]
[1731251850923,15.48760298,208.21,208.18,12.0088]
[1731251851131,15.48760298,208.19,208.08,6.4518]
[1731251851343,15.48760298,208.15,208.1,0.16]
[1731251851546,15.48760298,208.13,208.09,4.8055]
[1731251851752,15.48760298,208.12,208.09,12.014]
[1731251852326,15.48760298,208.1,208.09,12.014]
[1731251852546,15.48760298,208.1,208.06,4.8061]
[1731251852731,15.48760298,208.09,208.04,16.8235]
[1731251852934,15.48760298,208.08,208.04,16.8235]
[1731251853247,15.48760298,208.08,208.04,12.0168]
[1731251853446,15.48760298,208.05,208.01,4.8072]
[1731251853749,15.48760298,208.04,208.01,4.8072]
[1731251853949,15.48760298,208.1,207.99,12.0194]
[1731251853950,15.48760298,208.02,207.99,12.0194]
[1731251854126,15.48760298,208.0,207.95,4.8087]
[1731251854328,15.48760298,207.97,207.94,12.0225]
[1731251854649,15.48760298,207.95,207.89,10.9778]
[1731251854960,15.48760298,207.97,207.89,38.49090298]
[1731251855449,15.48760298,207.95,207.89,23.0033]
[1731251855742,15.48760298,207.98,207.9,15.48760298]
[1731251855950,15.48760298,207.96,207.89,23.0033]
[1731251856254,4.8065,208.05,207.89,16.8356]
[1731251856255,15.48760298,207.95,207.89,16.8356]
[1731251856459,15.48760298,207.92,207.89,12.0255]
[1731251856628,15.48760298,207.96,207.89,12.0255]
[1731251856835,15.48760298,207.94,207.89,12.0255]
[1731251857128,4.806,208.07,207.89,18.1932]
[1731251857349,22.5482,208.11,207.89,18.2932]
[1731251857548,27.5533,208.11,207.9,20.0]
[1731251857851,27.3533,208.11,207.9,20.0]
[1731251858236,15.48760298,208.05,207.97,15.48760298]
[1731251858428,15.48760298,208.06,207.98,15.48760298]
[1731251858630,15.48760298,208.06,207.99,15.48760298]
[1731251858838,15.48760298,208.05,207.97,27.50850298]
[1731251859345,15.48760298,208.06,207.99,15.48760298]
[1731251859554,15.48760298,208.09,208.01,15.48760298]
[1731251859730,15.48760298,208.11,208.03,15.48760298]
[1731251860037,15.48760298,208.09,208.01,15.48760298]
[1731251860241,4.8039,208.16,207.97,12.0209]
[1731251860242,15.48760298,208.08,208.0,15.48760298]
[1731251860548,15.48760298,208.08,208.01,16.826]
[1731251860748,15.48760298,208.05,208.01,12.0186]
[1731251860939,15.48760298,208.02,207.95,12.0218]
[1731251861137,15.48760298,208.01,207.95,12.0218]
[1731251861341,15.48760298,208.0,207.95,12.0218]
[1731251861536,15.48760298,207.98,207.95,12.0218]
[1731251861737,15.48760298,207.97,207.92,4.8094]
[1731251862156,15.48760298,207.96,207.9,16.8347]
[1731251862450,0.1,208.06,207.9,16.8347]
[1731251862451,15.48760298,207.97,207.9,32.32230298]
[1731251862751,4.8075,208.01,207.9,12.0249]
[1731251862752,15.48760298,207.95,207.9,12.0249]
[1731251862937,15.48760298,207.91,207.85,12.0277]
[1731251863253,15.48760298,207.87,207.81,4.812]
[1731251863428,15.48760298,207.88,207.81,16.8422]
[1731251863633,15.48760298,207.88,207.81,32.32980298]
[1731251863943,15.48760298,207.84,207.81,12.0302]
[1731251864148,15.48760298,207.82,207.81,12.0302]
[1731251864529,15.48760298,207.82,207.71,15.48760298]
[1731251864781,15.48760298,207.77,207.69,20.30240298]
[1731251865048,4.8118,207.82,207.7,12.0361]
[1731251865049,15.48760298,207.75,207.7,12.0361]
[1731251865647,15.48760298,207.74,207.7,12.0361]
[1731251865840,20.1,207.86,207.7,27.52370298]
[1731251865841,15.48760298,207.76,207.7,27.52370298]
[1731251866337,15.48760298,207.75,207.7,11.0361]
[1731251866538,15.48760298,207.78,207.7,31.33830298]
[1731251866740,15.48760298,207.76,207.7,15.8507]
[1731251866930,15.48760298,207.78,207.71,15.48760298]
[1731251867132,15.48760298,207.74,207.7,11.0361]
[1731251867354,0.1,207.83,207.7,11.0361]
[1731251867355,15.48760298,207.71,207.7,11.0361]
[1731251867543,15.48760298,207.71,207.67,4.8152]
[1731251867846,15.48760298,207.73,207.67,16.8535]
[1731251868254,15.48760298,207.71,207.67,16.8535]
[1731251868459,15.48760298,207.69,207.67,12.0383]
[1731251868754,15.48760298,207.68,207.62,16.8576]
[1731251868959,15.48760298,207.68,207.62,17.0176]
[1731251869147,15.48760298,207.66,207.62,16.8576]
[1731251869349,15.48760298,207.68,207.62,16.8576]
[1731251869654,4.8137,207.74,207.62,16.8576]
[1731251869655,15.48760298,207.65,207.62,16.8576]
[1731251869862,15.48760298,207.68,207.62,16.8576]
[1731251870530,15.48760298,207.66,207.58,15.48760298]
[1731251870744,15.48760298,207.67,207.59,15.48760298]
[1731251871462,15.48760298,207.66,207.58,15.48760298]
[1731251871646,15.48760298,207.66,207.59,4.8171]
[1731251871951,15.48760298,207.66,207.59,32.34760298]
[1731251872172,15.48760298,207.68,207.6,15.48760298]
[1731251873150,15.48760298,207.68,207.61,4.8167]
[1731251873356,15.48760298,207.67,207.61,4.8167]
[1731251873959,15.48760298,207.64,207.61,4.8167]
[1731251874257,15.48760298,207.63,207.59,16.8599]
[1731251875148,15.48760298,207.63,207.59,12.0429]
[1731251875537,4.8149,207.69,207.56,4.8178]
[1731251875538,15.48760298,207.61,207.56,4.8178]
[1731251875754,15.48760298,207.57,207.54,16.864]
[1731251875957,15.48760298,207.6,207.54,12.0458]
[1731251875958,15.48760298,207.55,207.54,12.0458]
[1731251876154,15.48760298,207.55,207.5,4.8191]
[1731251876361,15.48760298,207.53,207.5,4.8191]
[1731251876567,15.48760298,207.53,207.5,16.8672]
[1731251876746,15.48760298,207.55,207.5,16.8672]
[1731251877055,15.48760298,207.55,207.51,20.0]
[1731251878144,15.48760298,207.62,207.55,20.0]
[1731251878350,15.48760298,207.64,207.56,15.48760298]
[1731251878558,15.48760298,207.6,207.52,15.48760298]
[1731251878756,15.48760298,207.58,207.52,15.48760298]
[1731251879076,15.48760298,207.58,207.5,32.35480298]
[1731251879566,15.48760298,207.56,207.5,32.35480298]
[1731251879786,4.817,207.6,207.5,32.35480298]
[1731251879787,15.48760298,207.52,207.5,12.0481]
[1731251879944,15.48760298,207.54,207.5,16.8673]
[1731251880142,15.48760298,207.56,207.5,16.8673]
[1731251880343,15.48760298,207.55,207.5,16.8673]
[1731251881141,15.48760298,207.52,207.5,12.0481]
[1731251881349,15.48760298,207.52,207.38,16.8771]
[1731251881649,4.8182,207.55,207.38,16.8771]
[1731251881650,15.48760298,207.47,207.38,16.8771]
[1731251881870,15.48760298,207.48,207.41,15.48760298]
[1731251882048,15.48760298,207.5,207.38,16.8771]
[1731251882248,15.48760298,207.54,207.46,15.48760298]
[1731251882452,15.48760298,207.6,207.52,15.48760298]
[1731251882870,4.8165,207.62,207.49,15.48760298]
[1731251882871,15.48760298,207.58,207.49,15.48760298]
[1731251883067,15.48760298,207.55,207.48,15.48760298]
[1731251883280,15.48760298,207.59,207.52,15.48760298]
[1731251883758,70.0,207.97,207.49,16.8682]
[1731251883759,15.48760298,207.68,207.58,15.48760298]
[1731251883961,15.48760298,207.68,207.59,15.48760298]
[1731251884148,4.8134,207.75,207.52,43.776884]
[1731251884149,15.48760298,207.64,207.52,43.776884]
[1731251884352,15.48760298,207.7,207.52,43.776884]
[1731251884353,15.48760298,207.62,207.55,15.48760298]
[1731251884547,15.58760298,207.7,207.53,15.48760298]
[1731251884548,15.48760298,207.61,207.53,15.48760298]
[1731251885277,15.48760298,207.54,207.42,15.48760298]
[1731251885566,15.48760298,207.51,207.42,15.48760298]
[1731251885771,15.48760298,207.55,207.46,15.48760298]
[1731251886068,15.48760298,207.55,207.48,15.48760298]
[1731251886374,15.48760298,207.57,207.5,15.48760298]
[1731251886551,15.48760298,207.57,207.49,23.776884]
[1731251886747,25.33287838,207.56,207.49,23.776884]
[1731251887356,25.33287838,207.56,207.48,25.33287838]
[1731251887685,25.33287838,207.56,207.49,23.776884]
[1731251888165,25.33287838,207.56,207.48,42.20177838]
[1731251888474,25.33287838,207.58,207.5,25.33287838]
[1731251888968,4.8165,207.62,207.49,23.776884]
[1731251888969,25.33287838,207.6,207.52,25.33287838]
[1731251889345,25.33287838,207.68,207.58,25.33287838]
[1731251889663,25.33287838,207.68,207.52,0.1]
[1731251889664,25.33287838,207.68,207.61,25.33287838]
[1731251890169,4.813,207.77,207.65,25.33287838]
[1731251890373,25.33287838,207.78,207.62,6.5147]
[1731251890569,25.33287838,207.78,207.7,25.33287838]
[1731251890974,25.33287838,207.78,207.63,43.776884]
[1731251891168,25.33287838,207.78,207.69,25.33287838]
[1731251891476,25.33287838,207.74,207.65,20.0]
[1731251891654,25.33287838,207.72,207.64,16.856]
[1731251891854,25.33287838,207.72,207.64,42.18887838]
[1731251892055,25.33287838,207.68,207.6,20.0]
[1731251892281,25.33287838,207.66,207.5,16.8673]
[1731251892451,25.33287838,207.64,207.55,25.33287838]
[1731251892871,25.33287838,207.7,207.55,25.33287838]
[1731251893068,25.33287838,207.63,207.55,25.33287838]
[1731251893446,25.33287838,207.63,207.56,16.8625]
[1731251893648,25.33287838,207.67,207.6,23.776884]
[1731251894068,25.33287838,207.65,207.6,23.776884]
[1731251894269,25.33287838,207.65,207.58,43.776884]
[1731251894656,25.33287838,207.69,207.63,25.33287838]
[1731251894858,25.33287838,207.71,207.64,43.776884]
[1731251895084,25.33287838,207.71,207.64,20.0]
[1731251895372,25.33287838,207.71,207.65,40.631984]
[1731251895669,25.33287838,207.7,207.65,40.631984]
[1731251896253,25.33287838,207.73,207.65,65.96486238]
[1731251896874,25.33287838,207.77,207.7,25.33287838]
[1731251897065,25.33287838,207.74,207.66,45.33287838]
[1731251897256,25.33287838,207.73,207.66,20.0]
[1731251897455,25.33287838,207.73,207.67,16.8536]
[1731251897875,25.33287838,207.71,207.67,16.8536]
[1731251898471,25.33287838,207.71,207.64,16.8559]
[1731251899283,25.33287838,207.69,207.64,16.8559]
[1731251899784,25.33287838,207.69,207.62,25.33287838]
[1731251899785,25.33287838,207.68,207.61,4.8165]
[1731251900006,25.33287838,207.7,207.55,4.8179]
[1731251900161,25.33287838,207.6,207.55,4.8179]
[1731251900361,25.33287838,207.59,207.54,12.0454]
[1731251900766,25.33287838,207.58,207.54,16.8637]
[1731251901690,25.33287838,207.58,207.51,25.33287838]
[1731251901691,25.33287838,207.55,207.49,12.0486]
[1731251901864,25.33287838,207.55,207.5,4.8192]
[1731251902393,25.33287838,207.51,207.46,4.82]
[1731251902597,25.33287838,207.48,207.44,16.872]
[1731251902766,25.33287838,207.47,207.42,4.821]
[1731251902968,4.8175,207.58,207.39,25.33287838]
[1731251902969,25.33287838,207.45,207.39,12.0543]
[1731251903294,0.1,207.51,207.39,12.0543]
[1731251903465,25.33287838,207.44,207.39,16.8761]
[1731251903670,25.33287838,207.47,207.39,42.20897838]
[1731251903883,25.33287838,207.44,207.39,12.0543]
[1731251904268,25.33287838,207.43,207.39,12.0543]
[1731251904770,25.33287838,207.42,207.39,12.0543]
[1731251905085,25.33287838,207.44,207.39,12.0543]
[1731251905386,25.33287838,207.48,207.41,25.33287838]
[1731251905571,25.33287838,207.48,207.4,25.33287838]
[1731251905771,25.33287838,207.47,207.4,20.0]
[1731251905968,25.33287838,207.47,207.4,25.33287838]
[1731251906285,25.33287838,207.49,207.41,25.33287838]
[1731251907075,25.33287838,207.49,207.42,24.8211]
[1731251907270,25.33287838,207.49,207.4,4.8214]
[1731251907271,25.33287838,207.47,207.4,4.8214]
[1731251907462,4.8196,207.49,207.4,24.8214]
[1731251907663,25.33287838,207.47,207.4,24.8214]
[1731251907889,25.33287838,207.43,207.36,25.33287838]
[1731251908093,25.33287838,207.43,207.37,20.0]
[1731251908393,25.33287838,207.47,207.39,25.33287838]
[1731251908794,0.1,207.54,207.36,4.8224]
[1731251908795,25.33287838,207.45,207.36,16.8787]
[1731251908974,25.33287838,207.46,207.39,25.33287838]
[1731251909168,25.33287838,207.45,207.37,30.15497838]
[1731251909384,25.33287838,207.45,207.38,25.33287838]
[1731251909573,0.1,207.39,207.19,16.8926]
[1731251909773,25.33287838,207.3,207.22,25.33287838]
[1731251909982,25.33287838,207.28,207.19,42.22547838]
[1731251911293,25.33287838,207.26,207.19,16.8926]
[1731251911501,25.33287838,207.22,207.16,4.827]
[1731251911789,25.33287838,207.18,207.14,4.8275]
[1731251912887,25.33287838,207.16,207.14,12.0691]
[1731251913275,25.33287838,207.16,207.08,16.9011]
[1731251913479,25.33287838,207.12,207.08,16.9012]
[1731251914183,25.33287838,207.12,207.08,12.0722]
[1731251914383,25.33287838,207.14,207.08,16.9012]
[1731251914686,25.33287838,207.18,207.11,25.33287838]
[1731251914890,25.33287838,207.2,207.13,25.33287838]
[1731251915087,25.33287838,207.22,207.15,25.33287838]
[1731251915269,25.33287838,207.2,207.16,20.0]
[1731251915472,25.33287838,207.22,207.16,20.0]
[1731251915896,25.33287838,207.22,207.15,20.0]
[1731251916394,25.33287838,207.22,207.16,16.895]
[1731251916573,25.33287838,207.22,207.17,20.0]
[1731251917189,4.8246,207.28,207.16,12.0679]
[1731251917190,25.33287838,207.18,207.16,12.0679]
[1731251917396,25.33287838,207.2,207.16,12.0679]
[1731251917595,25.33287838,207.22,207.16,12.0679]
[1731251917889,25.33287838,207.22,207.17,23.776884]
[1731251918091,25.33287838,207.18,207.1,49.47547838]
[1731251918398,25.33287838,207.2,207.12,25.33287838]
[1731251918893,25.33287838,207.18,207.11,16.8991]
[1731251919678,0.1,207.38,207.17,23.776884]
[1731251919879,25.33287838,207.33,207.25,25.33287838]
[1731251920083,25.33287838,207.33,207.26,23.776884]
[1731251920278,25.33287838,207.29,207.22,23.776884]
[1731251920479,25.33287838,207.29,207.24,43.776884]
[1731251920799,4.822,207.38,207.19,25.33287838]
[1731251920800,25.33287838,207.26,207.19,25.33287838]
[1731251920978,25.33287838,207.28,207.21,25.33287838]
[1731251921177,25.33287838,207.34,207.26,23.776884]
[1731251921387,25.33287838,207.36,207.27,25.33287838]
[1731251921588,25.33287838,207.38,207.3,23.776884]
[1731251921790,25.33287838,207.38,207.32,23.776884]
[1731251922203,25.33287838,207.38,207.3,43.776884]
[1731251922785,25.33287838,207.4,207.32,23.776884]
[1731251922979,25.33287838,207.42,207.34,23.776884]
[1731251923208,25.33287838,207.42,207.36,23.776884]
[1731251923501,25.33287838,207.4,207.32,23.776884]
[1731251923796,25.33287838,207.4,207.31,42.21567838]
[1731251923797,25.33287838,207.4,207.35,20.0]
[1731251923998,25.33287838,207.4,207.36,23.776884]
[1731251924180,25.33287838,207.42,207.36,23.776884]
[1731251924579,25.33287838,207.44,207.38,23.776884]
[1731251924777,25.33287838,207.44,207.39,20.0]
[1731251925078,25.33287838,207.48,207.39,45.33287838]
[1731251925275,25.33287838,207.5,207.43,25.33287838]
[1731251925481,40.55677838,207.54,207.45,25.33287838]
[1731251925708,25.33287838,207.57,207.47,23.776884]
[1731251925882,25.33287838,207.57,207.5,25.33287838]
[1731251926492,25.33287838,207.59,207.52,25.33287838]
[1731251926798,25.33287838,207.61,207.54,25.33287838]
[1731251927587,25.33287838,207.61,207.53,4.8185]
[1731251927781,25.33287838,207.61,207.53,30.15137838]
[1731251928202,25.33287838,207.61,207.53,42.19777838]
[1731251929106,25.33287838,207.65,207.57,25.33287838]
[1731251929499,25.33287838,207.65,207.56,23.776884]
[1731251929500,25.33287838,207.67,207.59,25.33287838]
[1731251929700,25.33287838,207.72,207.64,25.33287838]
[1731251929886,25.33287838,207.7,207.62,25.33287838]
[1731251930803,25.33287838,207.71,207.63,25.33287838]
[1731251930998,25.33287838,207.72,207.64,25.33287838]
[1731251931199,4.8111,207.85,207.71,23.776884]
[1731251931507,25.33287838,207.81,207.73,25.33287838]
[1731251931805,25.33287838,207.83,207.75,25.33287838]
[1731251931985,25.33287838,207.85,207.77,25.33287838]
[1731251932330,4.8107,207.87,207.78,23.776884]
[1731251932331,25.33287838,207.87,207.78,23.776884]
[1731251932504,25.33287838,207.87,207.78,25.33287838]
[1731251932886,25.33287838,207.81,207.73,25.33287838]
[1731251933093,25.33287838,207.81,207.74,23.776884]
[1731251933495,25.33287838,207.83,207.75,25.33287838]
[1731251933703,25.33287838,207.87,207.79,25.33287838]
[1731251934288,25.33287838,207.87,207.8,4.8123]
[1731251934508,25.33287838,207.89,207.81,25.33287838]
[1731251936124,25.33287838,207.84,207.8,12.0307]
[1731251936305,25.33287838,207.85,207.8,12.0307]
[1731251936506,6.4985,207.94,207.8,12.0307]
[1731251936507,25.33287838,207.87,207.8,12.0307]
[1731251937636,25.33287838,207.87,207.8,16.843]
[1731251937795,25.33287838,207.83,207.76,43.776884]
[1731251938116,30.24287838,207.9,207.76,4.8131]
[1731251938117,25.33287838,207.81,207.76,4.8131]
[1731251938520,25.33287838,207.84,207.77,25.33287838]
[1731251938822,25.33287838,207.85,207.77,25.33287838]
[1731251940298,25.33287838,207.85,207.78,20.0]
[1731251940813,25.33287838,207.85,207.79,4.8125]
[1731251941198,25.33287838,207.85,207.77,25.33287838]
[1731251941399,25.33287838,207.9,207.76,12.0331]
[1731251941400,25.33287838,207.79,207.76,12.0331]
[1731251941620,25.33287838,207.84,207.76,37.36597838]
[1731251941813,25.33287838,207.86,207.78,25.33287838]
[1731251942022,25.33287838,207.87,207.8,25.33287838]
[1731251942816,25.33287838,207.88,207.8,25.33287838]
[1731251942999,25.33287838,207.86,207.81,4.812]
[1731251943199,25.33287838,207.86,207.8,16.8426]
[1731251943428,25.33287838,207.86,207.8,12.0303]
[1731251944427,25.33287838,207.84,207.77,4.8129]
[1731251944638,25.33287838,207.82,207.77,4.8129]
[1731251944925,25.33287838,207.82,207.75,16.8469]
[1731251945130,12.31112741,207.82,207.75,16.8469]
[1731251945427,25.33287838,207.84,207.76,25.33287838]
[1731251945821,25.33287838,207.86,207.78,25.33287838]
[1731251946534,25.33287838,207.84,207.79,4.8125]
[1731251946736,25.33287838,207.82,207.75,12.0335]
[1731251946934,25.33287838,207.82,207.73,16.1644]
[1731251946935,25.33287838,207.8,207.73,4.8138]
[1731251947317,25.33287838,207.78,207.73,4.8138]
[1731251947622,25.33287838,207.74,207.65,31.71497838]
[1731251947812,25.33287838,207.74,207.68,12.0374]
[1731251948014,25.33287838,207.8,207.68,12.0374]
[1731251948219,25.33287838,207.8,207.59,39.2791]
[1731251948220,25.33287838,207.69,207.63,12.0403]
[1731251948425,0.1,207.77,207.63,16.8565]
[1731251948426,25.33287838,207.68,207.63,16.8565]
[1731251948908,25.33287838,207.66,207.63,12.0403]
[1731251949225,4.8145,207.71,207.58,12.0431]
[1731251949226,25.33287838,207.64,207.58,12.0431]
[1731251949537,25.33287838,207.7,207.58,12.0431]
[1731251949538,25.33287838,207.62,207.58,12.0431]
[1731251949832,25.33287838,207.61,207.55,4.818]
[1731251950739,25.33287838,207.59,207.54,12.0458]
[1731251950922,25.33287838,207.55,207.49,12.0484]
[1731251951320,25.33287838,207.55,207.5,4.8191]
[1731251951636,25.33287838,207.53,207.45,25.33287838]
[1731251951813,25.33287838,207.53,207.47,25.33287838]
[1731251952139,25.33287838,207.53,207.46,4.8201]